Cogmind - Beta 16 @@@ ROGUE MODE // 2025.11.13 @ 15:18:00 Player: Anting Result: Destroyed by Autobeam Turret with Autobeam Performance ------------- Evolutions (0) 0 Regions Visited (2) 400 Robots Destroyed (27) 135 Value Destroyed (624) 624 Prototype IDs (12) 240 Alien Tech Used (0) 0 Bonus (0) 0 TOTAL SCORE: 1399 Bonus ------- None Cogmind --------- Core Integrity 0/250 Matter 300/300 Energy 196/200 System Corruption 0% Temperature Cool (26) Movement Treading (160) Location -10/Subcaves Parts ------- > --- POWER (1) -------- Subdweller Power Source > --- PROPULSION (2) --- Spiked Treads Spiked Treads > --- UTILITY (2) ------ Medium Storage Unit Subdweller Optics > --- WEAPON (2) ------- Subdweller Laser Subdweller Laser > --- INVENTORY (10) --- Subdweller Power Source Arachnoskeleton Flightbrick Scrap Shield Peak State ------------ > --- POWER ------------ Subdweller Power Source > --- PROPULSION ------- Spiked Treads Spiked Treads > --- UTILITY ---------- Medium Storage Unit Subdweller Optics > --- WEAPON ----------- Battle Rifle Battle Cannon > --- INVENTORY -------- Subdweller Power Source Arachnoskeleton Flightbrick Scrap Shield [Rating: 19] Favorites ----------- Power Light Ion Engine Engine Light Ion Engine Propulsion Light Treads Treads Light Treads Leg Aluminum Leg Wheel Subdweller Monowheel Utility Medium Storage Unit Device Seismic Detector Storage Medium Storage Unit Protection Scrap Shield Weapon EM Pulse Gun Energy Gun EM Pulse Gun Ballistic Gun Light Assault Rifle Ballistic Cannon Battle Cannon Build | -11 -10 -10 ------- Run | Yrd Mat Sub Slots Evolved . | . . . Power . | . . . Propulsion . | . . . Utility . | . . . Weapon . | . . . Parts Attached 31 | 6 3 22 Power 5 | 1 . 4 Engine 5 | 1 . 4 Core . | . . . Reactor . | . . . Propulsion 10 | 2 . 8 Treads 5 | 2 . 3 Leg 2 | . . 2 Wheel 3 | . . 3 Hover . | . . . Flight . | . . . Utility 5 | 2 1 2 Device 2 | 1 . 1 Storage 2 | 1 1 . Processor . | . . . Hackware . | . . . Protection 1 | . . 1 Artifact . | . . . Weapon 11 | 1 2 8 Energy Gun 7 | 1 2 4 Energy Cannon . | . . . Ballistic Gun 3 | . . 3 Ballistic Cannon 1 | . . 1 Launcher . | . . . Special Weapon . | . . . Impact Weapon . | . . . Slashing Weapon . | . . . Piercing Weapon . | . . . Special Melee Weapon . | . . . Unidentified Prototypes . | . . . Parts Lost 8 | . . 8 Power 2 | . . 2 Propulsion 2 | . . 2 Utility 1 | . . 1 Weapon 3 | . . 3 Highest Loss Streak 5 | . . 5 To Critical Strikes . | . . . Average Backups 5 | 3 6 4 Power . | . 1 . Propulsion 1 | 1 2 1 Utility 1 | . 1 1 Weapon 1 | 1 1 . Tool/Special . | . . . Unused Backups 6 | . . 6 Power 1 | . . 1 Propulsion 2 | . . 2 Utility 3 | . . 3 Weapon . | . . . Tool/Special . | . . . Average Slot Usage (%) 92 | . 99 89 Engine 13 | . 14 13 Treads 16 | . 28 10 Leg 7 | . . 11 Wheel 2 | . . 4 Device 12 | . 14 11 Storage 12 | . 14 11 Energy Gun 19 | . 27 16 Ballistic Gun 4 | . . 7 Peak Build Rating 19 | 6 7 19 Average Rating 10 | 4 6 11 On Entrance 4 | . 6 7 Avg Prop Armor Cover (%) 26 | . . 26 Naked Turns 136 | . . 136 Heaviest Build 28 | 11 18 28 Greatest Support 40 | 40 40 40 Greatest Overweight (x) 4 | . . 4 Average Overweight (x) . | . . . Largest Inventory Capacity 10 | 8 10 10 Average Capacity 9 | 7 9 9 Most Carried 10 | 5 7 10 Average Carried 7 | 3 6 8 Final Capacity 10 | 8 10 10 Final Carried 10 | 5 7 10 Class Distribution -------------------- 82% | Mutant 10% | Scavenger-Mutant 6% | Derelict-Mutant Dominant Class ---------------- Mutant | -10/Materials Mutant | -10/Subcaves Resources | -11 -10 -10 ----------- Run | Yrd Mat Sub Matter Collected 822 | 258 30 534 Remotely . | . . . Salvage Created 824 | 117 220 487 Parts 47 | 8 12 27 Haulers Intercepted . | . . . Recyclers Shooed 1 | . 1 . Parts Field Recycled . | . . . Retrieved Matter . | . . . Parts Self-Destructed 18 | . . 18 Prevented 5 | . . 5 Parts Restored . | . . . Kills | -11 -10 -10 ------- Run | Yrd Mat Sub Combat Hostiles Destroyed 20 | . 5 15 Guns 14 | . 5 9 Cannons 4 | . . 4 AOE 1 | . . 1 Classes Destroyed 6 | 2 3 1 Tunneler 3 | 3 . . Recycler 1 | 1 . . Watcher 3 | . 3 . Swarmer 8 | . 3 5 Grunt 4 | . 2 2 Subdweller 8 | . . 8 Best Kill Streak 4 | 2 2 4 Combat Bots Only 4 | . 2 4 Max Kills in Single Turn 1 | 1 1 1 Gunslinging . | . . . Exploded 1 | . . 1 Melee . | . . . Uniques/NPCs Destroyed . | . . . Combat | -11 -10 -10 -------- Run | Yrd Mat Sub Hostile Shots Fired 137 | . 14 123 Missed 41 | . 5 36 Hits 96 | . 9 87 Projectile 96 | . 9 87 Critical Strikes 1 | . . 1 Damage Taken 1364 | . 98 1266 Core 251 | . 34 217 Absorbed by Shields . | . . . Core Remaining (%) 100 | 100 . . Volleys Fired 161 | 15 23 123 Largest 2 | 1 2 2 Hottest 120 | 50 90 120 Shots Fired 217 | 15 38 164 Gun 203 | 15 38 150 Cannon 14 | . . 14 Launcher . | . . . Special . | . . . Kinetic 96 | . . 96 Thermal 49 | 15 10 24 Explosive . | . . . Electromagnetic 72 | . 28 44 Robot Hit Streak 46 | 4 5 46 Robot Miss Streak 2 | 2 2 2 Penetration Max . | . . . Secondary Targets . | . . . Shots Hit Robots 106 | 11 22 73 Core Hits 45 | 5 12 28 Critical Kills 1 | . . 1 Critical Parts Destroyed . | . . . Critical Strikes 8 | 3 1 4 Burn 4 | 3 1 . Destroy 2 | . . 2 Blast 1 | . . 1 Corrupt 1 | . . 1 Melee Attacks . | . . . Impact . | . . . Slashing . | . . . Piercing . | . . . Sneak Attacks . | . . . Combat Hostiles . | . . . Follow-up Attacks . | . . . Damage Inflicted 1640 | 137 299 1204 Guns 1425 | 136 299 990 Cannons 145 | . . 145 Explosions 69 | . . 69 Melee . | . . . Ramming 1 | 1 . . Kinetic 371 | . . 371 Thermal 632 | 136 77 419 Explosive . | . . . Electromagnetic 636 | . 222 414 Impact . | . . . Slashing . | . . . Piercing . | . . . Highest Corruption . | . . . Average Corruption . | . . . Corruption Purged . | . . . Corruption Blocked . | . . . Overload Shots . | . . . Overflow Damage 6 | . . 6 Projectiles 6 | . . 6 Explosions . | . . . Melee . | . . . Knockbacks 3 | . . 3 Impact . | . . . Kinetic 3 | . . 3 Secondary . | . . . Self-Inflicted Damage 48 | . . 48 Shots 1 | . . 1 Rammed 1 | 1 . . Targets Rammed 1 | 1 . . Kicked . | . . . Crushed . | . . . Highest Temperature 126 | 120 126 4 Average Temperature 36 | 51 33 3 Received Heat Transfer 408 | . 18 390 Siege Activations . | . . . Martial Activations . | . . . Shielding Activations . | . . . Robots Disrupted . | . . . Combat Hostiles . | . . . Robots Corrupted 1 | . . 1 Combat Hostiles 1 | . . 1 Parts Fried . | . . . Impact Corruptions . | . . . Robots Melted . | . . . Combat Hostiles . | . . . Parts Melted . | . . . Heat Transferred 1350 | 629 296 425 Parts Sabotaged . | . . . Parts Stolen . | . . . Parts Stripped . | . . . Power Chain Reactions 1 | . . 1 Alert | -11 -10 -10 ------- Run | Yrd Mat Sub Maximum Alert Level . | . . . Low Security (%) 100 | 100 100 . Level 1 . | . . . Level 2 . | . . . Level 3 . | . . . Level 4 . | . . . Level 5 . | . . . High Security . | . . . Max Security . | . . . Peak Influence 90 | 10 90 . Initial . | . . . Average 9 | 2 10 . Influence Increases 423 | 20 208 195 Destroy 0b10 Robot/C 240 | . 100 140 Destroy 0b10 Robot/NC 35 | 20 15 . Destroy Leader 36 | . 26 10 Successful Hack 7 | . 7 . Select Force Hacks 30 | . 30 . Lose Combat Pursuer 75 | . 30 45 Influence Decreases 294 | 20 168 106 Entered New Map 20 | . . 20 Time Decay 274 | 20 168 86 Squads Dispatched 2 | . 2 . Investigation 1 | . 1 . Extermination . | . . . Reinforcement 1 | . 1 . Assault . | . . . Garrison . | . . . Intercept . | . . . Searches Triggered . | . . . Construction Impeded . | . . . Haulers Reinforced . | . . . Active Scanning Responses . | . . . Cargo Convoy Interrupts . | . . . Stealth | -11 -10 -10 --------- Run | Yrd Mat Sub Distress Signals . | . . . Communications Jammed . | . . . Distress Signals . | . . . Times Spotted 30 | . 11 19 Peak Tracking Total 6 | . 3 6 Tactical Retreats 4 | . 1 3 Traps | -11 -10 -10 ------- Run | Yrd Mat Sub Traps Triggered 1 | . 1 . Indirectly . | . . . Trap Hack Attempts . | . . . Triggered . | . . . Disarmed . | . . . Reprogrammed . | . . . Reused . | . . . Traps Extracted . | . . . Installed . | . . . Triggered . | . . . Machines | -11 -10 -10 ---------- Run | Yrd Mat Sub Machines Disabled 1 | . . 1 Max in Single Turn 1 | . . 1 Machines Repaired . | . . . Machines Dismantled . | . . . Machines Sabotaged . | . . . Overloaded Fab Kills . | . . . Hacking | -11 -10 -10 --------- Run | Yrd Mat Sub Machines Accessed 3 | . 2 1 Terminals 1 | . 1 . Fabricators . | . . . Repair Stations . | . . . Recycling Units 1 | . 1 . Scanalyzers . | . . . Garrison Access . | . . . Total Hacks 4 | . 3 1 Successful 3 | . 2 1 Failed 1 | . 1 . Catastrophic . | . . . Database Lockouts . | . . . Manual 4 | . 4 . Terminals 2 | . 2 . Fabricators . | . . . Repair Stations . | . . . Recycling Units 1 | . 1 . Scanalyzers . | . . . Garrison Access . | . . . Terminal Hacks 2 | . 1 1 Part Schematic 1 | . 1 . Proto ID Catalog 1 | . . 1 Fabricator Hacks . | . . . Repair Station Hacks . | . . . Recycling Unit Hacks . | . . . Scanalyzer . | . . . Garrison Access Hacks . | . . . Unauthorized Hacks 1 | . 1 . Terminals . | . . . Fabricators . | . . . Repair Stations . | . . . Recycling Units 1 | . 1 . Tunnel 1 | . 1 . Scanalyzers . | . . . Garrison Access . | . . . Data Cores Recovered . | . . . Used . | . . . Hacking Detections 1 | . 1 . Full Trace Events . | . . . Feedback Events . | . . . Feedback Blocked . | . . . Robot Schematics Acquired . | . . . Robots Built . | . . . Authchips . | . . . Time . | . . . Total Robot Build Rating . | . . . Part Schematics Acquired 1 | . 1 . Parts Built . | . . . Authchips . | . . . Time . | . . . Total Part Build Rating . | . . . Part Studies Acquired . | . . . Parts Repaired . | . . . Time . | . . . Parts Recycled . | . . . Recycled Matter . | . . . Retrieved Matter . | . . . Retrieved Components . | . . . Parts Scanalyzed . | . . . Part Schematics Acquired . | . . . Parts Damaged . | . . . Bothacking | -11 -10 -10 ------------ Run | Yrd Mat Sub Used RIF Installer . | . . . Robots Hacked . | . . . Non-combat . | . . . Combat . | . . . Robot Hacks Applied . | . . . Relay Couplers Released . | . . . Fabnet Peak Effective % . | . . . Robots Rewired . | . . . Allies Hacked . | . . . Hacks Repelled . | . . . Allies | -11 -10 -10 -------- Run | Yrd Mat Sub Total Allies . | . . . Largest Group . | . . . Highest-Rated Group . | . . . Highest-Rated Ally . | . . . Total Orders . | . . . Ally Attacks . | . . . Total Damage . | . . . Kills . | . . . Allies Corrupted . | . . . Allies Melted . | . . . Intel | -11 -10 -10 ------- Run | Yrd Mat Sub Active Infowar (turns) 4149 | 15 1561 2573 Optics 2 | . . 2 Seismic 4147 | 15 1561 2571 Robot Analysis Total . | . . . Derelict Logs Recovered 2 | . . 2 Drone Launches . | . . . Drone Recoveries . | . . . Exploration | -11 -10 -10 ------------- Run | Yrd Mat Sub Turns Passed 5015 | 111 1561 3343 Spaces Moved 2755 | 43 233 2479 Core 532 | 2 . 530 Treads 833 | 41 233 559 Legs 1004 | . . 1004 Wheels 386 | . . 386 Hover . | . . . Flight . | . . . Fastest Speed 50 | 50 160 50 Average Speed 122 | 154 160 118 Slowest Speed 260 | 160 160 260 Overloaded Moves . | . . . Propulsion Burnouts . | . . . Robots Hopped . | . . . Potential Cave-ins . | . . . Cave-ins Triggered . | . . . Exploration Rate (%) 42 | 4 35 88 Regions Visited 2 Branch Regions 1 Pre-discovered Areas 2 | . 1 1 Known Exits Taken . | . . . Unknown Exits Taken 2 | 1 1 . Scrap Searched 8 | . . 8 Spaces Dug . | . . . Terrain Destroyed 5 | . . 5 Melee . | . . . Projectile 1 | . . 1 AOE 4 | . . 4 Terrain Rammed . | . . . Walls Destroyed . | . . . Machines Disabled . | . . . Actions | -11 -10 -10 --------- Run | Yrd Mat Sub Total 4176 | 69 1382 2725 Wait 1184 | . 1122 62 Move 2754 | 43 232 2479 Hop . | . . . Pick Up 22 | 5 2 15 Fast Attach 18 | 6 . 12 Attach 11 | . 1 10 Detach 1 | . . 1 Swap 4 | . 2 2 Drop 21 | . . 21 Fire 161 | 15 23 123 Melee . | . . . Ram . | . . . Kick . | . . . Crush . | . . . Escape Stasis . | . . . Rewire . | . . . Trap . | . . . Miscellaneous . | . . . Route ------- -11/Scrapyard -10/Materials (discovered 2 exits: [*Min] / *Sub) -10/Subcaves (discovered 3 exits: [*Mat x2] / [*Rec]) History --------- Turn | Location | Event 15 | -11/Scrapyard | Discovered new exit (range 16) 112 | -11/Scrapyard | Entered Materials 310 | -10/Materials | Build established: Mutant 389 | -10/Materials | Discovered new exit (range 7) 1646 | -10/Materials | Discovered new exit (range 5) 1673 | -10/Materials | Entered Subcaves 1755 | -10/Subcaves | Discovered new exit (range 10) 1800 | -10/Subcaves | Learned location of Storage (-9) 2236 | -10/Subcaves | Shifting Twisted Machinery released Battle Rifle 2267 | -10/Subcaves | A swath of the cavern ceiling suddenly collapsed 2276 | -10/Subcaves | A Subdweller sparked back to life 2276 | -10/Subcaves | A Subdweller sparked back to life 2319 | -10/Subcaves | Found Prototype Leg 2451 | -10/Subcaves | Learned Materials terminal intel 2659 | -10/Subcaves | Shifting Twisted Machinery released Mak. System Restoration Module 2775 | -10/Subcaves | Visited 4L-MR0's lab 2782 | -10/Subcaves | Identified Arachnoskeleton 2799 | -10/Subcaves | Found Flightbrick 3697 | -10/Subcaves | Discovered new exit (range 11) 3770 | -10/Subcaves | Shifting Twisted Machinery released Flamer 4010 | -10/Subcaves | Build established: Scavenger-Mutant 4162 | -10/Subcaves | Core integrity fell below 50% 4281 | -10/Subcaves | Lost 5 parts (1p1n1u2w) 4556 | -10/Subcaves | Build established: Mutant 5005 | -10/Subcaves | Build established: Derelict-Mutant 5006 | -10/Subcaves | Discovered new exit (range 10) 5007 | -10/Subcaves | Core integrity fell below 20% 5016 | -10/Subcaves | Destroyed by Autobeam Turret with Autobeam Last Messages --------------- 04891_ Acquired Flightbrick. 04903_ Acquired 20 matter. 04906_ Acquired Sub. Optics. 04967_ Searching scrap... 04967_ Found Sub. Laser. 04967_ Found Battle Rifle. 04967_ Found 31 Matter. 04968_ Acquired 10 matter. 04968_ Searching scrap... 04968_ Found Sub. Laser. 04968_ Found 43 Matter. 04970_ Searching scrap... 04970_ Found Battle Rifle. 04970_ Found 56 Matter. 04975_ Dropped Battle Rifle. 04977_ Acquired Sub. Laser. 04983_ Dropped Battle Cannon. 04984_ Acquired Sub. Laser. 04985_ Acquired 20 matter. 05006_ EXIT=FOUND Map ----- +----------------------------------------------------+ | &####""###??????????????????????# ####???????????? | | !& #"##????????????????????????## ##????????????? | | #### ##??????????????????????????## ##???????????? | | ##?#"###??????????????????????????## ##??????????? | | ???#"""#???????????????????????????## #??????????? | | ???#####???????????????????????????## #??????????? | | ??????????????????????????????????## ##??????????? | | ?##??????????????????????????????## ##???????????? | | ## #???????????????????????????### ##????????????? | | ? ####???????????????????????# ##?????????????? | | ?? " ##???######????????????## ##??????????????? | | ??# #??##"][%#????????????# ##???????????????? | | ?## ??#[ %"##????????????## ##??????????????? | | ?# #??#%####??????????????##"#??????????????? | | ?# ##?#"[ #??????????????## #??????????????? | | ??# #?### ####?##?????????# ##??????????????? | | ???# #?##" " ## #?????????# ##???????######## | | ????# ### #?????????## ##??????# ## # | | ????# ### ###??????????## ##?????# | | ????# ### ##?????????????# #?????## # | | ???## ### #??########????# ##??????##### | | #### & #??#" """#???## #???????????# | | #"# % ##?# "#???# ####?????????## | | & ### "#???#%# ???????????# | | ## t""##??## ##???????????# | | # #### &%& @ <#???## #?#?????????# | | ### ##??# ## t""##????# # #?????????## | | ??###???## ########### "#????## #???????????? | | ?????????###?????????# "#????# # #???????????? | | ?????????????????????#" """#????# ####??????????? | | ?????????????????????########????# # #???###????? | | ?????????????????????????????????## #??## #???## | | ?????????????????????????????????## ##### #??## | | ?????????????????????????????????# ## #### | | ?????????????????????????????????## ## | | ??????????????????????????????????## | | ???????????????????????????????????## ## | | ????????????????????????????????????# ##### | | ????????????????????????????????????# #???## # | | ????????????????????????????????????# #????#### | | ????????????????????????????????????# #???????? | | ????????????????????????????????????# ######### | | ????????????????????????????????????## ## ## | | ?????????????????????????????????????# ## | | ?????????????????????????????????????## | | #????????????????????????????????????## #### | | ##???????????????????????????????????# ##??? | | ##??????????????????????????????????# ###### | | #??????????????????????????????????### ##### | | ##????????????????????????????????????# #?## | +----------------------------------------------------+ Best States ------------- Heat Dissipation 25 Energy Generation 15 Energy Capacity 200 Matter Stores 300 Matter Capacity 300 Sight Range 16 Terrain Scan Density 10 Armor Coverage 800 Evasion (%) 55 Recoil Reduction 2 Item Schematics ----------------- Hcp. Storage Unit | -10/Materials | Hacked Robot Schematics ------------------ None Fabricated ------------ Nothing Repaired ---------- Nothing Studied --------- None Alien Tech Used ----------------- None Achievements -------------- None Challenges ------------ None Game ------ Seed BlanketHardcellRailgun Manual? 0 Play Time 00:20:13 Cumulative 365.1 hours Start 2025.11.13 @ 13:14:59 End 2025.11.13 @ 15:18:00 Sessions 2 Manual Loads 0 Difficulty Rogue Special Mode None Game No. 251 Rogue 251 Adventurer 0 Explorer 0 Win Type - Total 23 Types 9/0/7/1/1/0/2/1/1/1 Lore% 83 Gallery% 79 Achievement% 66 Wizard Run 0 Options --------- Layout 1 ASCII 0 Keyboard 0 Movement Mouse Keybinds 0 Fullscreen 2 Font 24/Smallcaps Map View 50x35 Zoom Use 0% Tactical HUD 1 Map Filters NONE Filters NONE Steam 1 RUN: b003c4ed-e0c2-4b82-b2da-58c412ab828d